Cogmind - Beta 16 @@@ ROGUE MODE // 2025.12.21 @ 01:43:24 Player: Parkagirl Result: Destroyed by as-75152 with Assembled Maul Performance ------------- Evolutions (1) 500 Regions Visited (3) 600 Robots Destroyed (31) 155 Value Destroyed (776) 776 Prototype IDs (3) 60 Alien Tech Used (0) 0 Bonus (116) 116 TOTAL SCORE: 2207 Bonus ------- Follower Combat Kills 116 Cogmind --------- Core Integrity 0/400 Matter 305/350 Energy 243/265 System Corruption 2% Temperature Cool (0) Movement Walking (130) Location -9/Mines Parts ------- > --- POWER (1) -------- Improved Ion Engine > --- PROPULSION (3) --- Titanium Leg Titanium Leg Titanium Leg > --- UTILITY (3) ------ Small Storage Unit Small Matter Pod Signal Interpreter > --- WEAPON (2) ------- Mini Grenade Launcher Mini Grenade Launcher > --- INVENTORY (8) ---- Titanium Leg ECM Suite Field Recycling Unit (0) EM Shotgun Mini Grenade Launcher Peak State ------------ > --- POWER ------------ Light Ion Engine > --- PROPULSION ------- Titanium Leg Titanium Leg Titanium Leg > --- UTILITY ---------- Small Storage Unit Small Matter Pod Signal Interpreter > --- WEAPON ----------- Advanced EMP Blaster Advanced EMP Blaster > --- INVENTORY -------- Improved Ion Engine Titanium Leg ECM Suite Mini Grenade Launcher Mini Grenade Launcher Mini Grenade Launcher [Rating: 22] Favorites ----------- Power Light Ion Engine Engine Light Ion Engine Power Core Light Nuclear Core Propulsion Aluminum Leg Leg Aluminum Leg Wheel Compact Wheel Flight Unit Flight Unit Utility Small Storage Unit Device Improved Terrain Scanner Storage Small Storage Unit Processor Signal Interpreter Weapon Medium Laser Energy Gun Medium Laser Ballistic Gun Light Assault Rifle Launcher Mini Grenade Launcher Special Melee Weapon Datajack Build | -11 -10 -9 -9 ------- Run | Yrd Mat Mat Min Slots Evolved 2 | . . 2 . Power . | . . . . Propulsion 1 | . . 1 . Utility 1 | . . 1 . Weapon . | . . . . Parts Attached 38 | 11 1 24 2 Power 6 | 2 . 4 . Engine 5 | 2 . 3 . Core 1 | . . 1 . Reactor . | . . . . Propulsion 13 | 4 . 8 1 Treads . | . . . . Leg 8 | 2 . 5 1 Wheel 2 | 2 . . . Hover . | . . . . Flight 3 | . . 3 . Utility 4 | 2 . 2 . Device 1 | 1 . . . Storage 2 | 1 . 1 . Processor 1 | . . 1 . Hackware . | . . . . Protection . | . . . . Artifact . | . . . . Weapon 15 | 3 1 10 1 Energy Gun 5 | 2 1 1 1 Energy Cannon . | . . . . Ballistic Gun 1 | 1 . . . Ballistic Cannon . | . . . . Launcher 7 | . . 7 . Special Weapon . | . . . . Impact Weapon . | . . . . Slashing Weapon . | . . . . Piercing Weapon . | . . . . Special Melee Weapon 2 | . . 2 . Unidentified Prototypes 1 | . . 1 . Parts Lost 10 | . 1 9 . Power 3 | . . 3 . Propulsion 2 | . . 2 . Utility 1 | . 1 . . Weapon 4 | . . 4 . Highest Loss Streak 3 | . 1 3 . To Critical Strikes . | . . . . Average Backups 6 | 4 7 7 6 Power 1 | . 1 1 . Propulsion 1 | 3 3 1 1 Utility 1 | . . 1 2 Weapon 2 | . 2 3 2 Tool/Special . | . . . . Unused Backups 11 | . 3 3 5 Power . | . . . . Propulsion 5 | . 3 2 . Utility 4 | . . . 4 Weapon 2 | . . 1 1 Tool/Special . | . . . . Average Slot Usage (%) 91 | . 99 87 90 Engine 10 | . 14 7 11 Core 1 | . . 3 . Leg 28 | . 28 25 33 Flight 2 | . . 4 . Device 3 | . 13 . . Storage 18 | . 14 20 22 Processor 7 | . . 9 11 Energy Gun 12 | . 27 5 8 Launcher 4 | . . 7 3 Special Melee Weapon 1 | . . 3 . Peak Build Rating 22 | 9 9 22 19 Average Rating 12 | 7 8 12 17 On Entrance 8 | . 9 6 19 Avg Prop Armor Cover (%) . | . . . . Naked Turns . | . . . . Heaviest Build 19 | 14 13 19 16 Greatest Support 51 | 32 20 51 51 Greatest Overweight (x) 4 | 1 . 4 . Average Overweight (x) . | . . . . Largest Inventory Capacity 8 | 8 8 8 8 Average Capacity 7 | 7 8 8 8 Most Carried 8 | 8 8 8 8 Average Carried 6 | 4 7 7 6 Final Capacity 8 | 8 8 8 8 Final Carried 8 | 6 8 6 5 Class Distribution -------------------- 100% | Mutant Dominant Class ---------------- Mutant | -10/Materials Mutant | -9/Materials Mutant | -9/Mines Resources | -11 -10 -9 -9 ----------- Run | Yrd Mat Mat Min Matter Collected 916 | 288 31 410 187 Remotely . | . . . . Salvage Created 848 | 30 200 618 . Parts 54 | 3 11 40 . Haulers Intercepted . | . . . . Recyclers Shooed 2 | . 1 1 . Parts Field Recycled . | . . . . Retrieved Matter . | . . . . Parts Self-Destructed . | . . . . Prevented . | . . . . Parts Restored . | . . . . Kills | -11 -10 -9 -9 ------- Run | Yrd Mat Mat Min Combat Hostiles Destroyed 22 | . 6 16 . Guns 9 | . 6 3 . AOE 13 | . . 13 . Classes Destroyed 9 | 1 3 5 . Worker 2 | . 1 1 . Builder 1 | . . 1 . Tunneler 1 | 1 . . . Recycler 1 | . . 1 . Operator 2 | . . 2 . Watcher 2 | . . 2 . Swarmer 7 | . 3 4 . Grunt 9 | . 3 6 . Sentry 6 | . . 6 . Best Kill Streak 6 | 1 3 6 . Combat Bots Only 5 | . 3 5 . Max Kills in Single Turn 4 | 1 1 4 . Gunslinging . | . . . . Exploded 4 | . . 4 . Melee . | . . . . Uniques/NPCs Destroyed . | . . . . Combat | -11 -10 -9 -9 -------- Run | Yrd Mat Mat Min Hostile Shots Fired 144 | . 37 96 11 Missed 58 | . 13 40 5 Hits 86 | . 24 56 6 Melee 1 | . . . 1 Projectile 85 | . 24 56 5 AOE 2 | . . . 2 Damage Taken 1596 | 7 297 1100 192 Core 471 | 4 50 323 94 Absorbed by Shields . | . . . . Regen/Repaired (Parts) 36 | . . 36 . Core Remaining (%) 88 | 98 78 . . Volleys Fired 80 | 3 18 57 2 Largest 2 | 2 2 2 1 Hottest 100 | 70 100 60 45 Shots Fired 110 | 6 36 65 3 Gun 71 | 6 36 27 2 Cannon . | . . . . Launcher 39 | . . 38 1 Special . | . . . . Kinetic 3 | 3 . . . Thermal 66 | 3 36 27 . Explosive 26 | . . 25 1 Electromagnetic 15 | . . 13 2 Robot Hit Streak 8 | 4 8 8 1 Robot Miss Streak 3 | 1 2 3 2 Penetration Max . | . . . . Secondary Targets . | . . . . Shots Hit Robots 81 | 4 26 50 1 Core Hits 57 | 2 12 42 1 Critical Kills . | . . . . Critical Parts Destroyed . | . . . . Critical Strikes 1 | . 1 . . Burn 1 | . 1 . . Melee Attacks 10 | . . 10 . Impact . | . . . . Slashing . | . . . . Piercing . | . . . . Sneak Attacks 8 | . . 8 . Combat Hostiles . | . . . . Follow-up Attacks . | . . . . Damage Inflicted 2063 | 57 353 1618 35 Guns 593 | 42 328 192 31 Cannons . | . . . . Explosions 1416 | . . 1416 . Melee . | . . . . Ramming 54 | 15 25 10 4 Kinetic 16 | 16 . . . Thermal 546 | 26 328 192 . Explosive 991 | . . 991 . Electromagnetic 456 | . . 425 31 Impact . | . . . . Slashing . | . . . . Piercing . | . . . . Highest Corruption 2 | . . 2 2 Average Corruption 1 | . . 1 2 Corruption Purged . | . . . . Corruption Blocked . | . . . . Effects 6 | . . 2 4 Message Errors 1 | . . . 1 Matter Fused 2 | . . 1 1 Energy Discharges 1 | . . 1 . Data Loss (minor) 1 | . . . 1 Misfires 1 | . . . 1 Overload Shots . | . . . . Overflow Damage 46 | . . 46 . Projectiles . | . . . . Explosions 46 | . . 46 . Melee . | . . . . Knockbacks . | . . . . Impact . | . . . . Kinetic . | . . . . Secondary . | . . . . Self-Inflicted Damage 348 | 7 . 304 37 Shots 19 | . . 18 1 Rammed 3 | 3 . . . Targets Rammed 15 | 3 7 4 1 Kicked 12 | . 7 4 1 Crushed . | . . . . Highest Temperature 309 | 50 309 115 . Average Temperature 70 | 26 96 45 . Received Heat Transfer 417 | . 144 273 . Siege Activations . | . . . . Martial Activations . | . . . . Shielding Activations . | . . . . Robots Disrupted . | . . . . Combat Hostiles . | . . . . Robots Corrupted 1 | . . 1 . Combat Hostiles . | . . . . Parts Fried 2 | . . 2 . Impact Corruptions . | . . . . Robots Melted . | . . . . Combat Hostiles . | . . . . Parts Melted 3 | . 2 1 . Heat Transferred 1665 | 74 1036 555 . Parts Sabotaged . | . . . . Parts Stolen . | . . . . Parts Stripped . | . . . . Power Chain Reactions . | . . . . Alert | -11 -10 -9 -9 ------- Run | Yrd Mat Mat Min Maximum Alert Level 1 | . . 1 . Low Security (%) 89 | 100 100 75 100 Level 1 10 | . . 24 . Level 2 . | . . . . Level 3 . | . . . . Level 4 . | . . . . Level 5 . | . . . . High Security . | . . . . Max Security . | . . . . Peak Influence 316 | 5 60 316 173 Initial 120 | . . . 120 Average 80 | . 15 113 114 Influence Increases 1061 | 5 167 706 183 Destroy 0b10 Robot/C 560 | . 120 320 120 Destroy 0b10 Robot/NC 50 | 5 5 40 . Destroy Leader 164 | . 30 104 30 Allied During Kill 21 | . . . 21 Successful Hack 58 | . 11 47 . Disable Machine 30 | . . 30 . Destroy Structure 103 | . 1 90 12 Partial Spotted 15 | . . 15 . Lose Combat Pursuer 60 | . . 60 . Influence Decreases 1000 | 5 167 396 432 Entered New Map 190 | . . . 190 Time Decay 710 | 5 167 316 222 Lost Part 80 | . . 80 . Lost Ally 20 | . . . 20 Squads Dispatched 7 | . 1 5 1 Investigation 4 | . . 3 1 Extermination . | . . . . Reinforcement 3 | . 1 2 . Assault . | . . . . Garrison . | . . . . Intercept . | . . . . Searches Triggered . | . . . . Construction Impeded . | . . . . Haulers Reinforced . | . . . . Active Scanning Responses . | . . . . Cargo Convoy Interrupts . | . . . . Stealth | -11 -10 -9 -9 --------- Run | Yrd Mat Mat Min Distress Signals 5 | . 1 3 1 Communications Jammed . | . . . . Distress Signals . | . . . . Times Spotted 62 | . 13 29 20 Peak Tracking Total 18 | . 4 6 18 Tactical Retreats 3 | . . 3 . Traps | -11 -10 -9 -9 ------- Run | Yrd Mat Mat Min Traps Triggered . | . . . . Indirectly . | . . . . Trap Hack Attempts . | . . . . Triggered . | . . . . Disarmed . | . . . . Reprogrammed . | . . . . Reused . | . . . . Traps Extracted . | . . . . Installed . | . . . . Triggered . | . . . . Machines | -11 -10 -9 -9 ---------- Run | Yrd Mat Mat Min Machines Disabled 2 | . . 2 . Max in Single Turn 2 | . . 2 . Machines Repaired . | . . . . Machines Dismantled . | . . . . Machines Sabotaged . | . . . . Overloaded Fab Kills . | . . . . Hacking | -11 -10 -9 -9 --------- Run | Yrd Mat Mat Min Machines Accessed 10 | . 2 7 1 Terminals 6 | . 2 3 1 Fabricators . | . . . . Repair Stations 1 | . . 1 . Recycling Units 1 | . . 1 . Scanalyzers 2 | . . 2 . Garrison Access . | . . . . Total Hacks 44 | . 9 32 3 Successful 30 | . 5 25 . Failed 14 | . 4 7 3 Catastrophic 1 | . . 1 . Database Lockouts . | . . . . Manual 5 | . . 2 3 Terminals 21 | . 9 9 3 Fabricators . | . . . . Repair Stations 5 | . . 5 . Recycling Units 1 | . . 1 . Scanalyzers 17 | . . 17 . Garrison Access . | . . . . Terminal Hacks 9 | . 5 4 . Prototype ID Bank 1 | . 1 . . Branch Access Points 1 | . 1 . . Emergency Access Points 1 | . 1 . . Terminal Index 1 | . . 1 . Locate Traps 1 | . . 1 . Dispatch Records 1 | . 1 . . Patrol Status 1 | . . 1 . Hauler Manifests 1 | . 1 . . Zone Layout 1 | . . 1 . Fabricator Hacks . | . . . . Repair Station Hacks 5 | . . 5 . Scan Component 2 | . . 2 . Repair 2 | . . 2 . Refit 1 | . . 1 . Recycling Unit Hacks 1 | . . 1 . Report Inventory 1 | . . 1 . Scanalyzer 15 | . . 15 . Insert Component 5 | . . 5 . Analyze 4 | . . 4 . Retrieve Study 6 | . . 6 . Garrison Access Hacks . | . . . . Unauthorized Hacks . | . . . . Terminals . | . . . . Fabricators . | . . . . Repair Stations . | . . . . Recycling Units . | . . . . Scanalyzers . | . . . . Garrison Access . | . . . . Data Cores Recovered . | . . . . Used . | . . . . Hacking Detections 10 | . 2 7 1 Full Trace Events 4 | . . 3 1 Feedback Events . | . . . . Feedback Blocked . | . . . . Robot Schematics Acquired . | . . . . Robots Built . | . . . . Authchips . | . . . . Time . | . . . . Total Robot Build Rating . | . . . . Part Schematics Acquired 4 | . . 4 . Parts Built . | . . . . Authchips . | . . . . Time . | . . . . Total Part Build Rating . | . . . . Part Studies Acquired 6 | . . 6 . Parts Repaired 2 | . . 2 . Time 52 | . . 52 . Parts Recycled . | . . . . Recycled Matter . | . . . . Retrieved Matter . | . . . . Retrieved Components . | . . . . Parts Scanalyzed 4 | . . 4 . Part Schematics Acquired 4 | . . 4 . Parts Damaged . | . . . . Bothacking | -11 -10 -9 -9 ------------ Run | Yrd Mat Mat Min Used RIF Installer . | . . . . Robots Hacked 2 | . . 2 . Non-combat 2 | . . 2 . Combat . | . . . . Robot Hacks Applied 3 | . . 3 . parse_system 1 | . . 1 . no_distress 2 | . . 2 . Relay Couplers Released . | . . . . Fabnet Peak Effective % . | . . . . Robots Rewired . | . . . . Allies Hacked . | . . . . Hacks Repelled . | . . . . Allies | -11 -10 -9 -9 -------- Run | Yrd Mat Mat Min Total Allies 3 | . . . 3 Largest Group 3 | . . . 3 Highest-Rated Group 40 | . . . 40 Highest-Rated Ally 16 | . . . 16 Total Orders . | . . . . Ally Attacks 22 | . . . 22 Total Damage 196 | . . . 196 Kills 6 | . . . 6 Allies Corrupted . | . . . . Allies Melted . | . . . . Intel | -11 -10 -9 -9 ------- Run | Yrd Mat Mat Min Active Infowar (turns) 591 | 84 507 . . Terrain 591 | 84 507 . . Robot Analysis Total . | . . . . Derelict Logs Recovered 2 | . . . 2 Drone Launches . | . . . . Drone Recoveries . | . . . . Exploration | -11 -10 -9 -9 ------------- Run | Yrd Mat Mat Min Turns Passed 2048 | 153 516 906 473 Spaces Moved 1476 | 109 366 647 354 Core 2 | 1 . 1 . Treads . | . . . . Legs 1192 | 41 366 431 354 Wheels 67 | 67 . . . Hover . | . . . . Flight 215 | . . 215 . Fastest Speed 34 | 50 120 34 130 Average Speed 112 | 107 120 98 130 Slowest Speed 280 | 190 120 280 130 Overloaded Moves . | . . . . Propulsion Burnouts . | . . . . Robots Hopped 1 | . . 1 . Potential Cave-ins . | . . . . Cave-ins Triggered 1 | . . 1 . Exploration Rate (%) 41 | 5 49 46 66 Regions Visited 3 Branch Regions 1 Pre-discovered Areas 1 | . . . 1 Known Exits Taken 1 | . . 1 . Unknown Exits Taken 2 | 1 1 . . Scrap Searched 1 | . . . 1 Spaces Dug . | . . . . Terrain Destroyed 156 | . . 141 15 Melee . | . . . . Projectile . | . . . . AOE 156 | . . 141 15 Terrain Rammed . | . . . . Walls Destroyed . | . . . . Machines Disabled . | . . . . Actions | -11 -10 -9 -9 --------- Run | Yrd Mat Mat Min Total 1761 | 135 410 851 365 Wait 65 | . . 65 . Move 1471 | 108 365 644 354 Hop 1 | . . 1 . Pick Up 32 | 6 9 17 . Fast Attach 24 | 9 2 12 1 Attach 15 | . . 14 1 Detach 9 | 2 . 5 2 Swap 6 | 2 . 2 2 Drop 33 | 2 9 20 2 Fire 80 | 3 18 57 2 Melee 10 | . . 10 . Ram 3 | 3 . . . Kick 12 | . 7 4 1 Crush . | . . . . Escape Stasis . | . . . . Rewire . | . . . . Trap . | . . . . Miscellaneous . | . . . . Route ------- -11/Scrapyard -10/Materials (discovered 3 exits: *Mat / *Min x2) -9/Materials -9/Mines History --------- Turn | Location | Event 14 | -11/Scrapyard | Discovered new exit (range 15) 154 | -11/Scrapyard | Entered Materials 159 | -10/Materials | Identified exit to Mines 302 | -10/Materials | Build established: Mutant 361 | -10/Materials | Discovered new exit (range 5) 670 | -10/Materials | Entered another Materials area 670 | -9/Materials | Evolved 2 slots: Propulsion x1, Utility x1 1135 | -9/Materials | Crushed by falling debris 1198 | -9/Materials | Lost 3 parts (1p1n1w) 1232 | -9/Materials | Repaired Flight Unit+ 1259 | -9/Materials | Repaired Flight Unit+ 1372 | -9/Materials | Core integrity fell below 50% 1451 | -9/Materials | Core integrity fell below 20% 1567 | -9/Materials | Discovered new exit (range 7) 1575 | -9/Materials | Identified exit to Mines 1576 | -9/Materials | Entered Mines 1586 | -9/Mines | Assisted by bots powering up and referring to "LRC-V3" 1612 | -9/Mines | Met a Derelict bent on vengeance 1635 | -9/Mines | Learned location of Zion (-7) 2027 | -9/Mines | Assembled infested the area 2040 | -9/Mines | Learned Materials emergency access door positions 2049 | -9/Mines | Destroyed by as-75152 with Assembled Maul Last Messages --------------- 01987_ System corrupted: Component data lost. 01990_ Acquired 47 matter. 01991_ Acquired 59 matter. 02027_ ALERT: Infestation in the mines, dispatching Demolisher response squad. 02040_ Acquired derelict log, extracted data. Data stored: Materials emergency access points. 02047_ U-05 Engineer system corrupted by crushing effect. 02047_ U-05 Engineer knocked back. 02048_ U-05 Engineer suffers critical hit (Destroy). 02049_ as-85780 destroyed. 02049_ as-98132 destroyed. 02049_ U-05 Engineer destroyed. 02049_ as-15231 destroyed. 02049_ as-57948 destroyed. 02049_ as-69618 destroyed. 02049_ as-15879 destroyed. 02049_ as-50933 destroyed. Map ----- +----------------------------------------------------+ | ??????????????????????????????????????????? | | ??????????????????????????????????????????? | | ??????????????????????????????????????????? | | ??????????????????????????????????????????? | | ??????????????????????????????????????????? | | ??????????????????????????????????????????? | | ??????????????????????????????????????????? | | ??????????????????????????????????????????? | | ??????????????????????????????????????????? | | ??????????????????????????????????????????? | | ??????????????????????????????????????????? | | ??????????????????????????????????????????? | | ??????????????????????????????????????????? | | ??????????????????????????????????????????? | | ??????????????????????????????????????????? | | ??????????????????????????????????????????? | | ??????????????????????????????????????????? | | ?????????#????????????????????????????????? | | ?????##### ???????????????????????? ??????? | | ?????# ??######???????????? ?? ?????# | | ????? ## ####????????? ##^???## | | ???? a ????????????# ^#### | | ???? a a a a a ???????????????# | | ??? < a a #???????????????# | | ??? aa a %a #????????? ^ ^ # | | ???# g@g#?????????? #?## | | ?????# # ##??????????? ?????# | | ?????????????#### #???????????????????## | | ????????????????# #???????????????????### | | ????????????????# ####???????????????? ## | | ????????????????# #????????????????# ## | | ????????????????# #????????????????# #? | | ????????????????#### #????????????????# ## | | ???????????????????# #####????????????# | | ???????????????????# ## ##???????????#### | | ???????????????????# ##?????????????? | | ???????????????????# """ #?????????????? | | ???????????????????# """ #?????????????? | | ???????????????????## """ #?????????????? | | ????????????????????## #?????????????? | | ?????????????????????## #?????????????? | | ????????????????# ##### #?????????????? | | ????????????????# #?????????????? | | ????????????????######## #?????????????? | | ???????????????????????## ##???????????### | | ????????????????????????## #????????????# | | ????????????????????###### ############## # | | ????????????????????# # | | ????????????????????# ################### # | | ???????????????????????????????????????## | +----------------------------------------------------+ Best States ------------- Heat Dissipation 28 Energy Generation 14 Energy Capacity 265 Matter Stores 350 Matter Capacity 350 Sight Range 16 Terrain Scan Range 16 Terrain Scan Density 10 Evasion (%) 63 Item Schematics ----------------- ECM Suite | -9/Materials | Scanalyzed Mni. Grenade Launcher | -9/Materials | Scanalyzed Imp. Ion Engine | -9/Materials | Scanalyzed Aluminum Leg | -9/Materials | Scanalyzed Robot Schematics ------------------ None Fabricated ------------ Nothing Repaired ---------- Flight Unit | 10% | -9/Materials Flight Unit | 10% | -9/Materials Studied --------- Datajack | -9/Materials | Hacked Flight Unit | -9/Materials | Hacked Lgt. Ion Engine | -9/Materials | Hacked Mni. Grenade Launcher | -9/Materials | Hacked Imp. Ion Engine | -9/Materials | Hacked Aluminum Leg | -9/Materials | Hacked Alien Tech Used ----------------- None Achievements -------------- Maybe Next Time I'll Detach My Launcher Challenges ------------ None Game ------ Seed RecyclingScrapKatana Manual? 0 Play Time 00:27:07 Cumulative 11.3 hours Start 2025.12.20 @ 23:15:02 End 2025.12.21 @ 01:43:24 Sessions 3 Manual Loads 0 Difficulty Rogue Special Mode None Game No. 22 Rogue 22 Adventurer 0 Explorer 0 Win Type - Total 0 Types 0/0/0/0/0/0/0/0/0/0 Lore% 9 Gallery% 16 Achievement% 15 Wizard Run 0 Options --------- Layout 1 ASCII 0 Keyboard 0 Movement Vi Keybinds 0 Fullscreen 1 Font 24/Tamsyn Map View 50x40 Zoom Use 29% Tactical HUD 1 Map Filters NONE Filters NONE Steam 1 RUN: e8e4447c-7710-4c38-bf66-32e1228a02d6